{"text_format":"1","workbook":"xlsx","n_sheets":6,"sheets":["Liste participants","Tournoi 16 participants","Tournoi 32 participants","Tournoi 4 poules","Tournoi 8 Poules","Tournoi Bomberman"],"not_rendered":{"charts":0,"images":0,"macros":1,"external_links":0,"defined_names":0,"comments":0,"pivot_tables":0},"unopened":[],"bounds":{"document_bytes":16777216,"sheet_cells":100000,"rows_first":2000,"rows_last":500,"rows_between":2000,"halvings":0,"cell_chars":16384,"cell_head_chars":4096},"cells_cut":0,"cells_raw":0,"read":"whole","date_system":"1900"}

{"sheet":"Liste participants","index":0,"n_rows":1,"n_cols":4,"rows_kept":1,"cut":false,"hidden":false,"merged":[]}
["NOM","AGE",null,"COMMANDES"]

{"sheet":"Tournoi 16 participants","index":1,"n_rows":36,"n_cols":17,"rows_kept":36,"cut":false,"hidden":false,"merged":[[0,0,3,5],[16,16,17,16],[23,16,24,16],[18,16,22,16]]}
["Tournoi 16 participants ",null,null,null,null,null,null,null,null,null,null,null,null,null,null,null,"COMMANDES"]
[]
[]
[]
[]
[{"$f":"'Liste participants'!$A$2","v":0}]
[null,null,null,{"$f":"IF(B6>B8,A6,A8)","v":0}]
[{"$f":"'Liste participants'!$A$3","v":0}]
[null,null,null,null,null,null,{"$f":"IF(E7>E11,D7,D11)","v":0}]
[{"$f":"'Liste participants'!$A$4","v":0}]
[null,null,null,{"$f":"IF(B10>B12,A10,A12)","v":0}]
[{"$f":"'Liste participants'!$A$5","v":0}]
[null,null,null,null,null,null,null,null,null,null,null,{"$f":"IF(H9>H17,G9,G17)","v":0}]
[{"$f":"'Liste participants'!$A$6","v":0}]
[null,null,null,{"$f":"IF(B14>B16,A14,A16)","v":0}]
[{"$f":"'Liste participants'!$A$7","v":0}]
[null,null,null,null,null,null,{"$f":"IF(E15>E19,D15,D19)","v":0},null,null,null,null,null,null,null,null,null,"GAGNANT"]
[{"$f":"'Liste participants'!$A$8","v":0}]
[null,null,null,{"$f":"IF(B18>B20,A18,A20)","v":0},null,null,null,null,null,null,null,null,null,null,null,null,{"$f":"IF(M13>M29,L13,L29)","v":0}]
[{"$f":"'Liste participants'!$A$9","v":0}]
[]
[{"$f":"'Liste participants'!$A$10","v":0}]
[null,null,null,{"$f":"IF(B22>B24,A22,A24)","v":0}]
[{"$f":"'Liste participants'!$A$11","v":0},null,null,null,null,null,null,null,null,null,null,null,null,null,null,null,"GAGNANT"]
[null,null,null,null,null,null,{"$f":"IF(E23>E27,D23,D27)","v":0}]
[{"$f":"'Liste participants'!$A$12","v":0}]
[null,null,null,{"$f":"IF(B26>B28,A26,A28)","v":0}]
[{"$f":"'Liste participants'!$A$13","v":0}]
[null,null,null,null,null,null,null,null,null,null,null,{"$f":"IF(H25>H33,G25,G33)","v":0}]
[{"$f":"'Liste participants'!$A$14","v":0}]
[null,null,null,{"$f":"IF(B30>B32,A30,A32)","v":0}]
[{"$f":"'Liste participants'!$A$15","v":0}]
[null,null,null,null,null,null,{"$f":"IF(E31>E35,D31,D35)","v":0}]
[{"$f":"'Liste participants'!$A$16","v":0}]
[null,null,null,{"$f":"IF(B34>B36,A34,A36)","v":0}]
[{"$f":"'Liste participants'!$A$17","v":0}]

{"sheet":"Tournoi 32 participants","index":2,"n_rows":36,"n_cols":37,"rows_kept":36,"cut":false,"hidden":false,"merged":[[0,0,3,5],[16,16,17,16],[18,16,22,16],[23,16,24,16],[16,20,17,20],[18,20,22,20],[23,20,24,20],[23,18,24,18],[16,18,17,18],[19,17,22,19]]}
["Tournoi 32 participants (max)",null,null,null,null,null,null,null,null,null,null,null,null,null,null,null,"COMMANDES"]
[]
[]
[]
[]
[{"$f":"'Liste participants'!$A$2","v":0},null,null,null,null,null,null,null,null,null,null,null,null,null,null,null,null,null,null,null,null,null,null,null,null,null,null,null,null,null,null,null,null,null,null,null,{"$f":"'Liste participants'!$A$18","v":0}]
[null,null,null,{"$f":"IF(B6>B8,A6,A8)","v":0},null,null,null,null,null,null,null,null,null,null,null,null,null,null,null,null,null,null,null,null,null,null,null,null,null,null,null,null,null,{"$f":"IF(AJ6>AJ8,AK6,AK8)","v":0}]
[{"$f":"'Liste participants'!$A$3","v":0},null,null,null,null,null,null,null,null,null,null,null,null,null,null,null,null,null,null,null,null,null,null,null,null,null,null,null,null,null,null,null,null,null,null,null,{"$f":"'Liste participants'!$A$19","v":0}]
[null,null,null,null,null,null,{"$f":"IF(E7>E11,D7,D11)","v":0},null,null,null,null,null,null,null,null,null,null,null,null,null,null,null,null,null,null,null,null,null,null,null,{"$f":"IF(AG7>AG11,AH7,AH11)","v":0}]
[{"$f":"'Liste participants'!$A$4","v":0},null,null,null,null,null,null,null,null,null,null,null,null,null,null,null,null,null,null,null,null,null,null,null,null,null,null,null,null,null,null,null,null,null,null,null,{"$f":"'Liste participants'!$A$20","v":0}]
[null,null,null,{"$f":"IF(B10>B12,A10,A12)","v":0},null,null,null,null,null,null,null,null,null,null,null,null,null,null,null,null,null,null,null,null,null,null,null,null,null,null,null,null,null,{"$f":"IF(AJ10>AJ12,AK10,AK12)","v":0}]
[{"$f":"'Liste participants'!$A$5","v":0},null,null,null,null,null,null,null,null,null,null,null,null,null,null,null,null,null,null,null,null,null,null,null,null,null,null,null,null,null,null,null,null,null,null,null,{"$f":"'Liste participants'!$A$21","v":0}]
[null,null,null,null,null,null,null,null,null,null,null,{"$f":"IF(H9>H17,G9,G17)","v":0},null,null,null,null,null,null,null,null,null,null,null,null,null,{"$f":"IF(AD9>AD17,AE9,AE17)","v":0}]
[{"$f":"'Liste participants'!$A$6","v":0},null,null,null,null,null,null,null,null,null,null,null,null,null,null,null,null,null,null,null,null,null,null,null,null,null,null,null,null,null,null,null,null,null,null,null,{"$f":"'Liste participants'!$A$22","v":0}]
[null,null,null,{"$f":"IF(B14>B16,A14,A16)","v":0},null,null,null,null,null,null,null,null,null,null,null,null,null,null,null,null,null,null,null,null,null,null,null,null,null,null,null,null,null,{"$f":"IF(AJ14>AJ16,AK14,AK16)","v":0}]
[{"$f":"'Liste participants'!$A$7","v":0},null,null,null,null,null,null,null,null,null,null,null,null,null,null,null,null,null,null,null,null,null,null,null,null,null,null,null,null,null,null,null,null,null,null,null,{"$f":"'Liste participants'!$A$23","v":0}]
[null,null,null,null,null,null,{"$f":"IF(E15>E19,D15,D19)","v":0},null,null,null,null,null,null,null,null,null,{"$f":"IF(Q24>U24,\"GAGNANT\",\"FINALISTE\")","v":"FINALISTE"},null,null,null,{"$f":"IF(U24>Q24,\"GAGNANT\",\"FINALISTE\")","v":"FINALISTE"},null,null,null,null,null,null,null,null,null,{"$f":"IF(AG15>AG19,AH15,AH19)","v":0}]
[{"$f":"'Liste participants'!$A$8","v":0},null,null,null,null,null,null,null,null,null,null,null,null,null,null,null,null,null,null,null,null,null,null,null,null,null,null,null,null,null,null,null,null,null,null,null,{"$f":"'Liste participants'!$A$24","v":0}]
[null,null,null,{"$f":"IF(B18>B20,A18,A20)","v":0},null,null,null,null,null,null,null,null,null,null,null,null,{"$f":"IF(M13>M29,L13,L29)","v":0},null,null,null,{"$f":"IF(Y13>Y29,Z13,Z29)","v":0},null,null,null,null,null,null,null,null,null,null,null,null,{"$f":"IF(AJ18>AJ20,AK18,AK20)","v":0}]
[{"$f":"'Liste participants'!$A$9","v":0},null,null,null,null,null,null,null,null,null,null,null,null,null,null,null,null,"VS.",null,null,null,null,null,null,null,null,null,null,null,null,null,null,null,null,null,null,{"$f":"'Liste participants'!$A$25","v":0}]
[]
[{"$f":"'Liste participants'!$A$10","v":0},null,null,null,null,null,null,null,null,null,null,null,null,null,null,null,null,null,null,null,null,null,null,null,null,null,null,null,null,null,null,null,null,null,null,null,{"$f":"'Liste participants'!$A$26","v":0}]
[null,null,null,{"$f":"IF(B22>B24,A22,A24)","v":0},null,null,null,null,null,null,null,null,null,null,null,null,null,null,null,null,null,null,null,null,null,null,null,null,null,null,null,null,null,{"$f":"IF(AJ22>AJ24,AK22,AK24)","v":0}]
[{"$f":"'Liste participants'!$A$11","v":0},null,null,null,null,null,null,null,null,null,null,null,null,null,null,null,null,null,null,null,null,null,null,null,null,null,null,null,null,null,null,null,null,null,null,null,{"$f":"'Liste participants'!$A$27","v":0}]
[null,null,null,null,null,null,{"$f":"IF(E23>E27,D23,D27)","v":0},null,null,null,null,null,null,null,null,null,null,null,null,null,null,null,null,null,null,null,null,null,null,null,{"$f":"IF(AG23>AG27,AH23,AH27)","v":0}]
[{"$f":"'Liste participants'!$A$12","v":0},null,null,null,null,null,null,null,null,null,null,null,null,null,null,null,null,null,null,null,null,null,null,null,null,null,null,null,null,null,null,null,null,null,null,null,{"$f":"'Liste participants'!$A$28","v":0}]
[null,null,null,{"$f":"IF(B26>B28,A26,A28)","v":0},null,null,null,null,null,null,null,null,null,null,null,null,null,null,null,null,null,null,null,null,null,null,null,null,null,null,null,null,null,{"$f":"IF(AJ26>AJ28,AK26,AK28)","v":0}]
[{"$f":"'Liste participants'!$A$13","v":0},null,null,null,null,null,null,null,null,null,null,null,null,null,null,null,null,null,null,null,null,null,null,null,null,null,null,null,null,null,null,null,null,null,null,null,{"$f":"'Liste participants'!$A$29","v":0}]
[null,null,null,null,null,null,null,null,null,null,null,{"$f":"IF(H25>H33,G25,G33)","v":0},null,null,null,null,null,null,null,null,null,null,null,null,null,{"$f":"IF(AD25>AD33,AE25,AE33)","v":0}]
[{"$f":"'Liste participants'!$A$14","v":0},null,null,null,null,null,null,null,null,null,null,null,null,null,null,null,null,null,null,null,null,null,null,null,null,null,null,null,null,null,null,null,null,null,null,null,{"$f":"'Liste participants'!$A$30","v":0}]
[null,null,null,{"$f":"IF(B30>B32,A30,A32)","v":0},null,null,null,null,null,null,null,null,null,null,null,null,null,null,null,null,null,null,null,null,null,null,null,null,null,null,null,null,null,{"$f":"IF(AJ30>AJ32,AK30,AK32)","v":0}]
[{"$f":"'Liste participants'!$A$15","v":0},null,null,null,null,null,null,null,null,null,null,null,null,null,null,null,null,null,null,null,null,null,null,null,null,null,null,null,null,null,null,null,null,null,null,null,{"$f":"'Liste participants'!$A$31","v":0}]
[null,null,null,null,null,null,{"$f":"IF(E31>E35,D31,D35)","v":0},null,null,null,null,null,null,null,null,null,null,null,null,null,null,null,null,null,null,null,null,null,null,null,{"$f":"IF(AG31>AG35,AH31,AH35)","v":0}]
[{"$f":"'Liste participants'!$A$16","v":0},null,null,null,null,null,null,null,null,null,null,null,null,null,null,null,null,null,null,null,null,null,null,null,null,null,null,null,null,null,null,null,null,null,null,null,{"$f":"'Liste participants'!$A$32","v":0}]
[null,null,null,{"$f":"IF(B34>B36,A34,A36)","v":0},null,null,null,null,null,null,null,null,null,null,null,null,null,null,null,null,null,null,null,null,null,null,null,null,null,null,null,null,null,{"$f":"IF(AJ34>AJ36,AK34,AK36)","v":0}]
[{"$f":"'Liste participants'!$A$17","v":0},null,null,null,null,null,null,null,null,null,null,null,null,null,null,null,null,null,null,null,null,null,null,null,null,null,null,null,null,null,null,null,null,null,null,null,{"$f":"'Liste participants'!$A$33","v":0}]

{"sheet":"Tournoi 4 poules","index":3,"n_rows":24,"n_cols":7,"rows_kept":24,"cut":false,"hidden":false,"merged":[[0,0,0,1],[0,3,0,4],[14,3,14,6]]}
["PREMIER TOUR",null,null,"FINALE",null,null,"COMMANDES"]
["NOM","place",null,"NOM","place"]
[{"$f":"'Liste participants'!$A$2","v":0},null,null,{"$f":"IF(B3=1,A3,IF(B4=1,A4,IF(B5=1,A5,IF(B6=1,A6,\"\"))))","v":""}]
[{"$f":"'Liste participants'!$A$3","v":0},null,null,{"$f":"IF(B9=1,A9,IF(B10=1,A10,IF(B11=1,A11,IF(B12=1,A12,\"\"))))","v":""}]
[{"$f":"'Liste participants'!$A$4","v":0},null,null,{"$f":"IF(B15=1,A15,IF(B16=1,A16,IF(B17=1,A17,IF(B18=1,A18,\"\"))))","v":""}]
[{"$f":"'Liste participants'!$A$5","v":0},null,null,{"$f":"IF(B21=1,A21,IF(B22=1,A22,IF(B23=1,A23,IF(B24=1,A24,\"\"))))","v":""}]
[]
["NOM","place"]
[{"$f":"'Liste participants'!$A$6","v":0},null,null,"VAINQUEUR"]
[{"$f":"'Liste participants'!$A$7","v":0},null,null,{"$f":"IF(E4=1,D4,IF(E5=1,D5,IF(E6=1,D6,IF(E7=1,D7,\"\"))))","v":""}]
[{"$f":"'Liste participants'!$A$8","v":0}]
[{"$f":"'Liste participants'!$A$9","v":0}]
[]
["NOM","place"]
[{"$f":"'Liste participants'!$A$10","v":0},null,null,"de 4 à 16 participants"]
[{"$f":"'Liste participants'!$A$11","v":0}]
[{"$f":"'Liste participants'!$A$12","v":0}]
[{"$f":"'Liste participants'!$A$13","v":0}]
[]
["NOM","place"]
[{"$f":"'Liste participants'!$A$14","v":0}]
[{"$f":"'Liste participants'!$A$15","v":0}]
[{"$f":"'Liste participants'!$A$16","v":0}]
[{"$f":"'Liste participants'!$A$17","v":0}]

{"sheet":"Tournoi 8 Poules","index":4,"n_rows":48,"n_cols":10,"rows_kept":48,"cut":false,"hidden":false,"merged":[[0,0,0,1],[0,3,0,4],[0,6,0,7],[13,3,13,7]]}
[null,null,null,"SECOND TOUR",null,null,"FINALE",null,null,"COMMANDES"]
["NOM","place",null,"NOM","place",null,"NOM","place"]
[{"$f":"'Liste participants'!$A$2","v":0},null,null,{"$f":"IF(B3=1,A3,IF(B4=1,A4,IF(B5=1,A5,IF(B6=1,A6,\"\"))))","v":""},null,null,{"$f":"IF(E3=1,D3,IF(E4=1,D4,IF(E5=1,D5,IF(E6=1,D6,\"\"))))","v":""}]
[{"$f":"'Liste participants'!$A$3","v":0},null,null,{"$f":"IF(B9=1,A9,IF(B10=1,A10,IF(B11=1,A11,IF(B12=1,A12,\"\"))))","v":""},null,null,{"$f":"IF(E9=1,D9,IF(E10=1,D10,IF(E11=1,D11,IF(E12=1,D12,\"\"))))","v":""}]
[{"$f":"'Liste participants'!$A$4","v":0},null,null,{"$f":"IF(B15=1,A15,IF(B16=1,A16,IF(B17=1,A17,IF(B18=1,A18,\"\"))))","v":""},null,null,{"$f":"IF(E3=2,D3,IF(E4=2,D4,IF(E5=2,D5,IF(E6=2,D6,\"\"))))","v":""}]
[{"$f":"'Liste participants'!$A$5","v":0},null,null,{"$f":"IF(B21=1,A21,IF(B22=1,A22,IF(B23=1,A23,IF(B24=1,A24,\"\"))))","v":""},null,null,{"$f":"IF(E9=2,D9,IF(E10=2,D10,IF(E11=2,D11,IF(E12=2,D12,\"\"))))","v":""}]
[]
["NOM","place",null,"NOM","place",null,"VAINQUEUR"]
[{"$f":"'Liste participants'!$A$6","v":0},null,null,{"$f":"IF(B27=1,A27,IF(B28=1,A28,IF(B29=1,A29,IF(B30=1,A30,\"\"))))","v":""},null,null,{"$f":"IF(H3=1,G3,IF(H4=1,G4,IF(H5=1,G5,IF(H6=1,G6,\"\"))))","v":""}]
[{"$f":"'Liste participants'!$A$7","v":0},null,null,{"$f":"IF(B33=1,A33,IF(B34=1,A34,IF(B35=1,A35,IF(B36=1,A36,\"\"))))","v":""}]
[{"$f":"'Liste participants'!$A$8","v":0},null,null,{"$f":"IF(B39=1,A39,IF(B40=1,A40,IF(B41=1,A41,IF(B42=1,A42,\"\"))))","v":""}]
[{"$f":"'Liste participants'!$A$9","v":0},null,null,{"$f":"IF(B45=1,A45,IF(B46=1,A46,IF(B47=1,A47,IF(B48=1,A48,\"\"))))","v":""}]
[]
["NOM","place",null,"de 16 à 32 participants"]
[{"$f":"'Liste participants'!$A$10","v":0}]
[{"$f":"'Liste participants'!$A$11","v":0}]
[{"$f":"'Liste participants'!$A$12","v":0}]
[{"$f":"'Liste participants'!$A$13","v":0}]
[]
["NOM","place"]
[{"$f":"'Liste participants'!$A$14","v":0}]
[{"$f":"'Liste participants'!$A$15","v":0}]
[{"$f":"'Liste participants'!$A$16","v":0}]
[{"$f":"'Liste participants'!$A$17","v":0}]
[]
["NOM","place"]
[{"$f":"'Liste participants'!$A$18","v":0}]
[{"$f":"'Liste participants'!$A$19","v":0}]
[{"$f":"'Liste participants'!$A$20","v":0}]
[{"$f":"'Liste participants'!$A$21","v":0}]
[]
["NOM","place"]
[{"$f":"'Liste participants'!$A$22","v":0}]
[{"$f":"'Liste participants'!$A$23","v":0}]
[{"$f":"'Liste participants'!$A$24","v":0}]
[{"$f":"'Liste participants'!$A$25","v":0}]
[]
["NOM","place"]
[{"$f":"'Liste participants'!$A$26","v":0}]
[{"$f":"'Liste participants'!$A$27","v":0}]
[{"$f":"'Liste participants'!$A$28","v":0}]
[{"$f":"'Liste participants'!$A$29","v":0}]
[]
["NOM","place"]
[{"$f":"'Liste participants'!$A$30","v":0}]
[{"$f":"'Liste participants'!$A$31","v":0}]
[{"$f":"'Liste participants'!$A$32","v":0}]
[{"$f":"'Liste participants'!$A$33","v":0}]

{"sheet":"Tournoi Bomberman","index":5,"n_rows":110,"n_cols":9,"rows_kept":110,"cut":false,"hidden":false,"merged":[[11,9,12,9],[15,4,15,5],[17,6,18,6],[16,4,18,5],[0,0,0,1],[0,3,0,4],[5,9,6,9],[8,9,9,9]]}
["PREMIER TOUR",null,null,"FINALE",null,null,"COMMANDES",null,"FINALE COMMANDE"]
["NOM","place",null,"NOM","place"]
[]
[]
[]
[]
[]
[]
[]
[]
[]
[]
[]
["NOM","place"]
[]
[null,null,null,null,{"$f":"IF(E3=1,D3,0)","v":0}]
[null,null,null,null,"1er",null,{"$f":"IF(E4=2,D4,0)","v":0}]
[null,null,null,{"$f":"IF(E5=3,D5,0)","v":0},null,null,"2ème"]
[null,null,null,"3ème"]
[]
[]
[]
[]
[]
[]
["NOM","place"]
[]
[]
[]
[]
[]
[]
[]
[]
[]
[]
[]
["NOM","place"]
[]
[]
[]
[]
[]
[]
[]
[]
[]
[]
[]
["NOM","place"]
[]
[]
[]
[]
[]
[]
[]
[]
[]
[]
[]
["NOM","place"]
[]
[]
[]
[]
[]
[]
[]
[]
[]
[]
[]
["NOM","place"]
[]
[]
[]
[]
[]
[]
[]
[]
[]
[]
[]
["NOM","place"]
[]
[]
[]
[]
[]
[]
[]
[]
[]
[]
[]
["NOM","place"]
[]
[]
[]
[]
[]
[]
[]
[]
[]
[]
[]
["NOM","place"]